fUSD/lending_fUSD_20250612
["ID","MTS","AMOUNT","RATE_DAILY","PERIOD"]
[365489389,1749701461307,-965.07,0.00019671,2]
[365489390,1749701461317,-490.0,0.00019671,2]
[365489391,1749701461327,-1032.39,0.00019671,2]
[365489392,1749701461336,-1430.21,0.00019671,2]
[365489393,1749701461346,-490.0,0.00019671,2]
[365489394,1749701461356,-575.06,0.00019671,2]
[365489395,1749701461366,-569.77,0.00019671,2]
[365489396,1749701461376,-739.0,0.00019671,2]
[365489397,1749701461386,-1148.73,0.00019671,2]
[365489398,1749701461396,-650.53,0.00019671,2]
[365489399,1749701461406,-1239.11,0.00019671,2]
[365489400,1749701461416,-755.62,0.00019671,2]
[365489401,1749701461425,-817.81,0.00019671,2]
[365489402,1749701461435,-156.619584,0.00019671,2]
[365489403,1749701461445,-490.0,0.00019671,2]
[365489404,1749701461455,-984.15,0.00019671,2]
[365489405,1749701461464,-1260.55,0.00019671,2]
[365489406,1749701461474,-490.0,0.00019671,2]
[365489407,1749701461483,-490.0,0.00019671,2]
[365489408,1749701461493,-685.5,0.00019671,2]
[365489409,1749701461503,-490.0,0.00019671,2]
[365489410,1749701461512,-490.0,0.00019671,2]
[365489411,1749701461523,-1990.3,0.00019671,2]
[365489412,1749701461534,-793.56,0.00019671,2]
[365489413,1749701461544,-490.0,0.00019671,2]
[365489414,1749701461554,-1050.4,0.00019671,2]
[365489415,1749701461563,-943.03,0.00019671,2]
[365489416,1749701461572,-935.42,0.00019671,2]
[365489417,1749701461582,-822.35,0.00019671,2]
[365489418,1749701461591,-490.0,0.00019671,2]
[365489419,1749701461601,-1267.0,0.00019671,2]
[365489420,1749701461611,-1040.55,0.00019671,2]
[365489421,1749701461621,-490.0,0.00019671,2]
[365489422,1749701461632,-735.06,0.00019671,2]
[365489423,1749701461641,-360.53759976,0.00019671,2]
[365489424,1749701461650,-1000.0,0.00019671,2]
[365489425,1749701461659,-931.18,0.00019671,2]
[365489426,1749701461669,-1187.28,0.00019671,2]
[365489427,1749701461678,-1139.71,0.00019671,2]
[365489428,1749701461688,-567.44,0.00019671,2]
[365489429,1749701461697,-490.0,0.00019671,2]
[365489430,1749701461707,-683.77,0.00019671,2]
[365489431,1749701461717,-490.0,0.00019671,2]
[365489432,1749701461727,-874.92,0.00019671,2]
[365489433,1749701461737,-490.0,0.00019671,2]
[365489434,1749701461746,-490.0,0.00019671,2]
[365489435,1749701461756,-490.0,0.00019671,2]
[365489436,1749701461766,-708.4,0.00019671,2]
[365489437,1749701461775,-490.0,0.00019671,2]
[365489438,1749701461786,-490.0,0.00019671,2]
[365489439,1749701461798,-490.0,0.00019671,2]
[365489440,1749701461807,-490.0,0.00019671,2]
[365489441,1749701461817,-490.0,0.00019671,2]
[365489442,1749701461828,-981.97,0.00019671,2]
[365489443,1749701461838,-1865.9,0.00019671,2]
[365489444,1749701461848,-1010.29,0.00019671,2]
[365489445,1749701461858,-1347.37,0.00019671,2]
[365489446,1749701461867,-490.0,0.00019671,2]
[365489447,1749701461877,-1205.2,0.00019671,2]
[365489448,1749701461887,-629.57,0.00019671,2]
[365489449,1749701461897,-961.68,0.00019671,2]
[365489450,1749701461907,-358.92753529,0.00019671,2]
[365489451,1749701461916,-490.0,0.00019671,2]
[365489452,1749701461926,-1463.15,0.00019671,2]
[365489453,1749701461936,-490.0,0.00019671,2]
[365489454,1749701461946,-1403.9,0.00019671,2]
[365489455,1749701461955,-490.0,0.00019671,2]
[365489456,1749701461965,-1671.18,0.00019671,2]
[365489457,1749701461974,-994.43,0.00019671,2]
[365489458,1749701461984,-3231.15,0.00019671,2]
[365489459,1749701461994,-1057.81,0.00019671,2]
[365489460,1749701462004,-3808.34,0.00019671,2]
[365489461,1749701462013,-1190.18,0.00019671,2]
[365489462,1749701462023,-1019.36,0.00019671,2]
[365489463,1749701462033,-859.86,0.00019671,2]
[365489464,1749701462043,-790.2,0.00019671,2]
[365489465,1749701462052,-918.27,0.00019671,2]
[365489466,1749701462062,-490.0,0.00019671,2]
[365489467,1749701462072,-4621.41,0.00019671,2]
[365489468,1749701462082,-1971.29,0.00019671,2]
[365489469,1749701462092,-2777.65,0.00019671,2]
[365489470,1749701462103,-490.0,0.00019671,2]
[365489471,1749701462113,-1071.27,0.00019671,2]
[365489472,1749701462122,-518.34,0.00019671,2]
[365489473,1749701462132,-642.65,0.00019671,2]
[365489474,1749701462142,-490.0,0.00019671,2]
[365489475,1749701462152,-1358.65,0.00019671,2]
[365489476,1749701462162,-2804.79,0.00019671,2]
[365489477,1749701462173,-1173.98,0.00019671,2]
[365489478,1749701462182,-539.88,0.00019671,2]
[365489479,1749701462192,-490.0,0.00019671,2]
[365489480,1749701462202,-490.0,0.00019671,2]
[365489481,1749701462212,-2528.5,0.00019671,2]
[365489482,1749701462222,-1821.78,0.00019671,2]
[365489483,1749701462232,-1026.65,0.00019671,2]
[365489484,1749701462242,-1081.48,0.00019671,2]
[365489485,1749701462251,-685.42,0.00019671,2]
[365489486,1749701462261,-1097.12,0.00019671,2]
[365489487,1749701462271,-1257.65,0.00019671,2]
[365489488,1749701462281,-699.42,0.00019671,2]
[365489489,1749701462291,-704.62,0.00019671,2]
[365489490,1749701462300,-356.39879694,0.00019671,2]
[365489491,1749701462310,-155.663536,0.00019671,2]
[365489492,1749701462319,-490.0,0.00019671,2]
[365489493,1749701462329,-882.41,0.00019671,2]
[365489494,1749701462339,-1922.36,0.00019671,2]
[365489495,1749701462349,-562.78,0.00019671,2]
[365489496,1749701462359,-460.0,0.00019671,2]
[365489497,1749701462369,-490.0,0.00019671,2]
[365489498,1749701462379,-4718.14,0.00019671,2]
[365489499,1749701462389,-13072.36,0.00019671,2]
[365489500,1749701462398,-1321.93,0.00019671,2]
[365489501,1749701462408,-248.11747713,0.00019671,2]
[365489502,1749701462417,-762.52,0.00019671,2]
[365489503,1749701462427,-490.0,0.00019671,2]
[365489504,1749701462437,-2141.41,0.00019671,2]
[365489505,1749701462446,-1410.05,0.00019671,2]
[365489506,1749701462455,-1408.36,0.00019671,2]
[365489507,1749701462464,-1128.49,0.00019671,2]
[365489508,1749701462474,-490.0,0.00019671,2]
[365489509,1749701462484,-693.45,0.00019671,2]
[365489510,1749701462494,-1145.9,0.00019671,2]
[365489511,1749701462504,-1533.5,0.00019671,2]
[365489512,1749701462513,-2448.82,0.00019671,2]
[365489513,1749701462523,-1029.29,0.00019671,2]
[365489514,1749701462536,-490.0,0.00019671,2]
[365489515,1749701462546,-490.0,0.00019671,2]
[365489516,1749701462555,-490.0,0.00019671,2]
[365489517,1749701462565,-893.71,0.00019671,2]
[365489518,1749701462574,-561.33,0.00019671,2]
[365489519,1749701462584,-568.07,0.00019671,2]
[365489520,1749701462593,-490.0,0.00019671,2]
[365489521,1749701462603,-643.53,0.00019671,2]
[365489522,1749701462614,-592.85,0.00019671,2]
[365489523,1749701462624,-490.0,0.00019671,2]
[365489524,1749701462633,-1035.98,0.00019671,2]
[365489525,1749701462643,-822.77,0.00019671,2]
[365489526,1749701462652,-535.06,0.00019671,2]
[365489527,1749701462661,-490.0,0.00019671,2]
[365489528,1749701462671,-490.0,0.00019671,2]
[365489529,1749701462681,-5421.08,0.00019671,2]
[365489530,1749701462691,-825.03,0.00019671,2]
[365489531,1749701462700,-542.96,0.00019671,2]
[365489532,1749701462710,-1910.84,0.00019671,2]
[365489533,1749701462720,-1109.86,0.00019671,2]
[365489534,1749701462730,-692.91,0.00019671,2]
[365489535,1749701462740,-990.47,0.00019671,2]
[365489536,1749701462751,-1325.15,0.00019671,2]
[365489537,1749701462761,-3579.5,0.00019671,2]
[365489538,1749701462771,-710.1,0.00019671,2]
[365489539,1749701462782,-1312.1,0.00019671,2]
[365489540,1749701462791,-154.21837,0.00019671,2]
[365489541,1749701462801,-3860.13,0.00019671,2]
[365489542,1749701462810,-644.74,0.00019671,2]
[365489543,1749701462820,-490.0,0.00019671,2]
[365489544,1749701462830,-490.0,0.00019671,2]
[365489545,1749701462839,-490.0,0.00019671,2]
[365489546,1749701462849,-261.71180992,0.00019671,2]
[365489547,1749701462858,-762.77,0.00019671,2]
[365489548,1749701462868,-238.22,0.00019671,2]
[365489549,1749701462878,-447.06875402,0.00019671,2]
[365489550,1749701462887,-490.0,0.00019671,2]
[365489551,1749701462897,-490.0,0.00019671,2]
[365489552,1749701462907,-1136.81,0.00019671,2]
[365489553,1749701462918,-4912.12,0.00019671,2]
[365489554,1749701462928,-15982.41,0.00019671,2]
[365489555,1749701462937,-2287.66,0.00019671,2]
[365489556,1749701462947,-694.84,0.00019671,2]
[365489557,1749701462956,-3750.16,0.00019671,2]
[365489558,1749701462966,-490.0,0.00019671,2]
[365489559,1749701462975,-490.0,0.00019671,2]
[365489560,1749701462984,-543.42,0.00019671,2]
[365489561,1749701462993,-490.0,0.00019671,2]
[365489562,1749701463003,-490.0,0.00019671,2]
[365489563,1749701463012,-1580.73,0.00019671,2]
[365489564,1749701463022,-696.13,0.00019671,2]
[365489565,1749701463032,-490.0,0.00019671,2]
[365489566,1749701463041,-2540.13,0.00019671,2]
[365489567,1749701463051,-490.0,0.00019671,2]
[365489568,1749701463061,-490.0,0.00019671,2]
[365489569,1749701463070,-830.98,0.00019671,2]
[365489570,1749701463080,-1017.66,0.00019671,2]
[365489571,1749701463091,-490.0,0.00019671,2]
[365489572,1749701463104,-1745.65,0.00019671,2]
[365489573,1749701463114,-385.589712,0.00019671,2]
[365489574,1749701463124,-215.78383166,0.00019671,2]
[365489575,1749701463134,-3257.57,0.00019671,2]
[365489576,1749701463145,-490.0,0.00019671,2]
[365489577,1749701463154,-3652.45,0.00019671,2]
[365489578,1749701463164,-12049.78,0.00019671,2]
[365489579,1749701463175,-2494.0,0.00019671,2]
[365489580,1749701463184,-598.58,0.00019671,2]
[365489581,1749701463194,-720.26,0.00019671,2]
[365489582,1749701463203,-909.48,0.00019671,2]
[365489583,1749701463213,-2425.84,0.00019671,2]
[365489584,1749701463222,-371.24304242,0.00019671,2]
[365489585,1749701463232,-490.0,0.00019671,2]
[365489586,1749701463242,-2171.13,0.00019671,2]
[365489587,1749701463252,-4500.73,0.00019671,2]
[365489588,1749701463262,-704.4,0.00019671,2]
[365489589,1749701463271,-955.3,0.00019671,2]
[365489590,1749701463283,-490.0,0.00019671,2]
[365489591,1749701463293,-937.74,0.00019671,2]
[365489592,1749701463302,-1205.95,0.00019671,2]
[365489593,1749701463311,-490.0,0.00019671,2]
[365489594,1749701463321,-3951.3,0.00019671,2]
[365489595,1749701463331,-1721.67,0.00019671,2]
[365489596,1749701463341,-2067.1,0.00019671,2]
[365489597,1749701463351,-490.0,0.00019671,2]
[365489598,1749701463361,-557.89,0.00019671,2]
[365489599,1749701463371,-881.8,0.00019671,2]
[365489600,1749701463381,-2414.18,0.00019671,2]
[365489601,1749701463391,-832.0,0.00019671,2]
[365489602,1749701463401,-624.71,0.00019671,2]
[365489603,1749701463411,-856.08,0.00019671,2]
[365489604,1749701463420,-886.03,0.00019671,2]
[365489605,1749701463429,-1086.63,0.00019671,2]
[365489606,1749701463439,-2648.99,0.00019671,2]
[365489607,1749701463449,-638.87,0.00019671,2]
[365489608,1749701463459,-1621.39,0.00019671,2]
[365489609,1749701463468,-490.0,0.00019671,2]
[365489610,1749701463477,-4895.25,0.00019671,2]
[365489611,1749701463487,-834.34,0.00019671,2]
[365489612,1749701463496,-783.0,0.00019671,2]
[365489613,1749701463505,-628.35,0.00019671,2]
[365489614,1749701463515,-854.93,0.00019671,2]
[365489615,1749701463525,-466.94887442,0.00019671,2]
[365489616,1749701463536,-5602.74,0.00019671,2]
[365489617,1749701463546,-4512.56,0.00019671,2]
[365489618,1749701463555,-1017.78,0.00019671,2]
[365489619,1749701463565,-1227.55,0.00019671,2]
[365489620,1749701463575,-490.0,0.00019671,2]
[365489621,1749701463585,-516.05,0.00019671,2]
[365489622,1749701463594,-641.75,0.00019671,2]
[365489623,1749701463604,-500.0,0.00019671,2]
[365489624,1749701463614,-500.0,0.00019671,2]
[365489625,1749701463623,-500.0,0.00019671,2]
[365489626,1749701463632,-500.0,0.00019671,2]
[365489627,1749701463642,-743.32,0.00019671,2]
[365489628,1749701463652,-642.79,0.00019671,2]
[365489629,1749701463662,-490.0,0.00019671,2]
[365489630,1749701463671,-500.0,0.00019671,2]
[365489631,1749701463681,-500.0,0.00019671,2]
[365489632,1749701463691,-490.0,0.00019671,2]
[365489633,1749701463701,-500.0,0.00019671,2]
[365489634,1749701463710,-3728.83,0.00019671,2]
[365489635,1749701463720,-2195.41,0.00019671,2]
[365489636,1749701463730,-500.0,0.00019671,2]
[365489637,1749701463740,-500.0,0.00019671,2]
[365489638,1749701463749,-500.0,0.00019671,2]
[365489639,1749701463759,-500.0,0.00019671,2]
[365489640,1749701463769,-500.0,0.00019671,2]
[365489641,1749701463779,-1401.99,0.00019671,2]
[365489642,1749701463790,-500.0,0.00019671,2]
[365489643,1749701463800,-500.0,0.00019671,2]
[365489644,1749701463810,-500.0,0.00019671,2]
[365489645,1749701463820,-500.0,0.00019671,2]
[365489646,1749701463829,-500.0,0.00019671,2]
[365489647,1749701463840,-500.0,0.00019671,2]
[365489648,1749701463850,-374.26209153,0.00019671,2]
[365489649,1749701463859,-500.0,0.00019671,2]
[365489650,1749701463869,-500.0,0.00019671,2]
[365489651,1749701463879,-490.0,0.00019671,2]
[365489652,1749701463888,-500.0,0.00019671,2]
[365489653,1749701463897,-500.0,0.00019671,2]
[365489654,1749701463907,-500.0,0.00019671,2]
[365489655,1749701463916,-500.0,0.00019671,2]
[365489656,1749701463925,-500.0,0.00019671,2]
[365489657,1749701463934,-621.04,0.00019671,2]
[365489658,1749701463943,-500.0,0.00019671,2]
[365489659,1749701463952,-500.0,0.00019671,2]
[365489660,1749701463961,-500.0,0.00019671,2]
[365489661,1749701463971,-2106.97,0.00019671,2]
[365489662,1749701463980,-500.0,0.00019671,2]
[365489663,1749701463990,-500.0,0.00019671,2]
[365489664,1749701463999,-500.0,0.00019671,2]
[365489665,1749701464008,-500.0,0.00019671,2]
[365489666,1749701464017,-490.0,0.00019671,2]
[365489667,1749701464026,-500.0,0.00019671,2]
[365489668,1749701464037,-490.0,0.00019671,2]
[365489669,1749701464047,-500.0,0.00019671,2]
[365489670,1749701464056,-500.0,0.00019671,2]
[365489671,1749701464066,-500.0,0.00019671,2]
[365489672,1749701464076,-500.0,0.00019671,2]
[365489673,1749701464085,-500.0,0.00019671,2]
[365489674,1749701464097,-500.0,0.00019671,2]
[365489675,1749701464107,-500.0,0.00019671,2]
[365489676,1749701464116,-500.0,0.00019671,2]
[365489677,1749701464126,-963.96,0.00019671,2]
[365489678,1749701464137,-500.0,0.00019671,2]
[365489679,1749701464147,-490.0,0.00019671,2]
[365489680,1749701464157,-500.0,0.00019671,2]
[365489681,1749701464166,-575.4,0.00019671,2]
[365489682,1749701464177,-500.0,0.00019671,2]
[365489683,1749701464187,-1728.98,0.00019671,2]
[365489684,1749701464196,-500.0,0.00019671,2]
[365489685,1749701464206,-500.0,0.00019671,2]
[365489686,1749701464415,-500.0,0.00019671,2]
[365489687,1749701464425,-500.0,0.00019671,2]
[365489688,1749701464435,-500.0,0.00019671,2]
[365489689,1749701464444,-500.0,0.00019671,2]
[365489690,1749701464454,-827.97,0.00019671,2]
[365489691,1749701464464,-500.0,0.00019671,2]
[365489692,1749701464474,-490.0,0.00019671,2]
[365489693,1749701464483,-500.0,0.00019671,2]
[365489694,1749701464492,-500.0,0.00019671,2]
[365489695,1749701464502,-151.0,0.00019671,2]
[365489696,1749701464512,-1746.55,0.00019671,2]
[365489697,1749701464522,-500.0,0.00019671,2]
[365489698,1749701464531,-500.0,0.00019671,2]
[365489699,1749701464541,-531.0,0.00019671,2]
[365489700,1749701464551,-753.038531,0.000197,2]
[365489701,1749701464560,-753.038531,0.000197,2]
[365489702,1749701464570,-532.119977,0.000197,2]
[365489703,1749701464579,-532.119977,0.000197,2]
[365489704,1749701464589,-769.0,0.000197,2]
[365489705,1749701464598,-237.0,0.000197,2]
[365489706,1749701464608,-376.0,0.000197,2]
[365489707,1749701464617,-1000.0,0.00019721,2]
[365489708,1749701464628,-503.33499911,0.00019721,2]
[365489709,1749701464638,-502.17486514,0.00019721,2]
[365489710,1749701464647,-1000.0,0.00019721,2]
[365489711,1749701464658,-1000.0,0.00019721,2]
[365489712,1749701464667,-1000.0,0.00019721,2]
[365489713,1749701464677,-169.27420383,0.0001979,2]
[365489714,1749701464687,-156.587,0.00019792,2]
[365489715,1749701464696,-215.0738,0.00019792,2]
[365489716,1749701464706,-151.0,0.000198,2]
[365489717,1749701464715,-210.0,0.000198,2]
[365489718,1749701464725,-151.0,0.000198,2]
[365489719,1749701464736,-151.0,0.000198,2]
[365489720,1749701464746,-236.517051,0.000198,2]
[365489721,1749701464755,-236.517051,0.000198,2]
[365489722,1749701464765,-151.0,0.000198,2]
[365489723,1749701464775,-151.0,0.000198,2]
[365489724,1749701464784,-500.0,0.00019834,2]
[365489725,1749701464793,-500.0,0.00019834,2]
[365489726,1749701464803,-766.18,0.00019834,2]
[365489727,1749701464813,-766.18,0.00019834,2]
[365489728,1749701464822,-151.0,0.00019834,2]
[365489729,1749701464831,-758.42,0.00019834,2]
[365489730,1749701464842,-758.42,0.00019834,2]
[365489731,1749701464852,-151.0,0.00019834,2]
[365489732,1749701464861,-151.0,0.00019834,2]
[365489733,1749701464871,-151.0,0.00019834,2]
[365489734,1749701464881,-151.0,0.00019834,2]
[365489735,1749701464891,-151.0,0.00019834,2]
[365489736,1749701464901,-151.0,0.00019835,2]
[365489737,1749701464911,-151.0,0.00019835,2]
[365489738,1749701464920,-151.0,0.00019835,2]
[365489739,1749701464930,-236.517051,0.00019835,2]
[365489740,1749701464940,-236.517051,0.00019835,2]
[365489741,1749701464950,-151.0,0.00019835,2]
[365489742,1749701464959,-272.513784,0.00019835,2]
[365489743,1749701464969,-2140.81616,0.00019835,2]
[365489744,1749701464978,-1871.654098,0.00019835,2]
[365489745,1749701464987,-753.038531,0.00019835,2]
[365489746,1749701464998,-753.038531,0.00019835,2]
[365489747,1749701465007,-532.119977,0.00019835,2]
[365489748,1749701465017,-532.119977,0.00019835,2]
[365489749,1749701465026,-630.06,0.00019835,2]
[365489750,1749701465037,-490.0,0.00019835,2]
[365489751,1749701465047,-490.0,0.00019835,2]
[365489752,1749701465057,-490.0,0.00019835,2]
[365489753,1749701465066,-311.28578822,0.00019835,2]
[365489754,1749701465076,-450.0,0.00019835,2]
[365489755,1749701465086,-490.0,0.00019835,2]
[365489756,1749701465097,-567.60330895,0.00019835,2]
[365489757,1749701465107,-490.0,0.00019835,2]
[365489758,1749701465116,-490.0,0.00019835,2]
[365489759,1749701465125,-490.0,0.00019835,2]
[365489760,1749701465136,-490.0,0.00019835,2]
[365489761,1749701465146,-490.0,0.00019835,2]
[365489762,1749701465156,-490.0,0.00019835,2]
[365489763,1749701465166,-513.89,0.00019835,2]
[365489764,1749701465176,-490.0,0.00019835,2]
[365489765,1749701465186,-490.0,0.00019835,2]
[365489766,1749701465196,-490.0,0.00019835,2]
[365489767,1749701465205,-490.0,0.00019835,2]
[365489768,1749701465216,-490.0,0.00019835,2]
[365489769,1749701465226,-490.0,0.00019835,2]
[365489770,1749701465235,-490.0,0.00019835,2]
[365489771,1749701465245,-490.0,0.00019835,2]
[365489772,1749701465254,-490.0,0.00019835,2]
[365489773,1749701465263,-490.0,0.00019835,2]
[365489774,1749701465272,-896.8,0.00019835,2]
[365489775,1749701465282,-700.21,0.00019835,2]
[365489776,1749701465294,-490.0,0.00019835,2]
[365489777,1749701465304,-450.0,0.00019835,2]
[365489778,1749701465314,-1486.29,0.00019835,2]
[365489779,1749701465323,-793.12,0.00019835,2]
[365489780,1749701465333,-490.0,0.00019835,2]
[365489781,1749701465342,-490.0,0.00019835,2]
[365489782,1749701465352,-490.0,0.00019835,2]
[365489783,1749701465362,-490.0,0.00019835,2]
[365489784,1749701465371,-784.6,0.00019835,2]
[365489785,1749701465381,-573.16,0.00019835,2]
[365489786,1749701465391,-580.22,0.00019835,2]
[365489787,1749701465401,-832.24,0.00019835,2]
[365489788,1749701465411,-490.0,0.00019835,2]
[365489789,1749701465420,-752.68,0.00019835,2]
[365489790,1749701465429,-1409.48,0.00019835,2]
[365489791,1749701465439,-826.36,0.00019835,2]
[365489792,1749701465450,-490.0,0.00019835,2]
[365489793,1749701465459,-1236.0,0.00019835,2]
[365489794,1749701465469,-1209.35,0.00019835,2]
[365489795,1749701465478,-490.0,0.00019835,2]
[365489796,1749701465488,-490.0,0.00019835,2]
[365489797,1749701465498,-696.16,0.00019835,2]
[365489798,1749701465508,-583.66,0.00019835,2]
[365489799,1749701465518,-151.0,0.00019835,2]
[365489800,1749701465528,-490.0,0.00019835,2]
[365489801,1749701465539,-1803.01,0.00019835,2]
[365489802,1749701465549,-843.52,0.00019835,2]
[365489803,1749701465559,-490.0,0.00019835,2]
[365489804,1749701465568,-151.0,0.00019835,2]
[365489805,1749701465578,-490.0,0.00019835,2]
[365489806,1749701465587,-901.7,0.00019835,2]
[365489807,1749701465597,-1084.16,0.00019835,2]
[365489808,1749701465607,-835.84,0.00019835,2]
[365489809,1749701465617,-490.0,0.00019835,2]
[365489810,1749701465627,-912.83,0.00019835,2]
[365489811,1749701465637,-490.0,0.00019835,2]
[365489812,1749701465647,-161.575356,0.00019835,2]
[365489813,1749701465656,-490.0,0.00019835,2]
[365489814,1749701465666,-1394.62,0.00019835,2]
[365489815,1749701465676,-1190.94,0.00019835,2]
[365489816,1749701465685,-490.0,0.00019835,2]
[365489817,1749701465695,-1006.16,0.00019835,2]
[365489818,1749701465705,-285.998571,0.00019835,2]
[365489819,1749701465715,-1070.91,0.00019835,2]
[365489820,1749701465725,-490.0,0.00019835,2]
[365489821,1749701465735,-151.0,0.00019835,2]
[365489822,1749701465744,-490.0,0.00019835,2]
[365489823,1749701465754,-151.0,0.00019835,2]
[365489824,1749701465763,-1216.85,0.00019835,2]
[365489825,1749701465773,-490.0,0.00019835,2]
[365489826,1749701465784,-490.0,0.00019835,2]
[365489827,1749701465794,-151.0,0.00019835,2]
[365489828,1749701465804,-490.0,0.00019835,2]
[365489829,1749701465813,-898.93,0.00019835,2]
[365489830,1749701465823,-602.73,0.00019835,2]
[365489831,1749701465833,-490.0,0.00019835,2]
[365489832,1749701465843,-178.32599893,0.00019835,2]
[365489833,1749701465853,-1183.85,0.00019835,2]
[365489834,1749701465862,-151.0,0.00019835,2]
[365489835,1749701465872,-791.39,0.00019835,2]
[365489836,1749701465882,-185.173379,0.00019835,2]
[365489837,1749701465892,-490.0,0.00019835,2]
[365489838,1749701465901,-185.173379,0.00019835,2]
[365489839,1749701465912,-490.0,0.00019835,2]
[365489840,1749701465922,-151.0,0.00019835,2]
[365489841,1749701465932,-627.36445287,0.00019835,2]
[365489842,1749701465943,-151.0,0.00019835,2]
[365489843,1749701465953,-771.95,0.00019835,2]
[365489844,1749701465963,-751.34,0.00019835,2]
[365489845,1749701465973,-804.43,0.00019835,2]
[365489846,1749701465983,-1251.74592,0.00019835,2]
[365489847,1749701465992,-1396.4,0.00019835,2]
[365489848,1749701466002,-965.07,0.00019835,2]
[365489849,1749701466011,-490.0,0.00019835,2]
[365489850,1749701466021,-1251.74592,0.00019835,2]
[365489851,1749701466030,-151.0,0.00019835,2]
[365489852,1749701466041,-1032.39,0.00019835,2]
[365489853,1749701466051,-1430.21,0.00019835,2]
[365489854,1749701466060,-490.0,0.00019835,2]
[365489855,1749701466070,-569.77,0.00019835,2]
[365489856,1749701466079,-151.0,0.00019835,2]
[365489857,1749701466088,-6942.106902,0.00019835,2]
[365489858,1749701466102,-151.0,0.00019835,2]
[365489859,1749701466111,-739.0,0.00019835,2]
[365489860,1749701466120,-1148.73,0.00019835,2]
[365489861,1749701466130,-650.53,0.00019835,2]
[365489862,1749701466140,-1239.11,0.00019835,2]
[365489863,1749701466150,-755.62,0.00019835,2]
[365489864,1749701466159,-151.0,0.00019835,2]
[365489865,1749701466169,-817.81,0.00019835,2]
[365489866,1749701466179,-151.0,0.00019835,2]
[365489867,1749701466188,-156.619584,0.00019835,2]
[365489868,1749701466197,-151.0,0.00019835,2]
[365489869,1749701466208,-151.0,0.00019835,2]
[365489870,1749701466217,-490.0,0.00019835,2]
[365489871,1749701466227,-984.15,0.00019835,2]
[365489872,1749701466236,-1260.55,0.00019835,2]
[365489873,1749701466246,-151.0,0.00019835,2]
[365489874,1749701466255,-490.0,0.00019835,2]
[365489875,1749701466265,-490.0,0.00019835,2]
[365489876,1749701466275,-685.5,0.00019835,2]
[365489877,1749701466286,-490.0,0.00019835,2]
[365489878,1749701466296,-490.0,0.00019835,2]
[365489879,1749701466305,-151.0,0.00019835,2]
[365489880,1749701466314,-151.0,0.00019835,2]
[365489881,1749701466324,-1990.3,0.00019835,2]
[365489882,1749701466334,-793.56,0.00019835,2]
[365489883,1749701466344,-490.0,0.00019835,2]
[365489884,1749701466354,-1050.4,0.00019835,2]
[365489885,1749701466364,-943.03,0.00019835,2]
[365489886,1749701466374,-935.42,0.00019835,2]
[365489887,1749701466384,-822.35,0.00019835,2]
[365489888,1749701466393,-151.0,0.00019835,2]